bitfinex-derivatives/quotes_SOLF0:USTF0_20250712
["timestamp","ask_amount","ask_price","bid_price","bid_amount"]
[1752333512999,5.16945726,159.59,159.49,5.16945726]
[1752333513202,3.41,159.58,159.5,3.5]
[1752333513505,3.41,159.56,159.5,3.5]
[1752333513695,194.70945726,159.57,159.49,5.16945726]
[1752333513696,6.2656,159.55,159.52,6.2665]
[1752333513899,192.95,159.57,159.5,3.5]
[1752333514405,189.54,159.57,159.53,5.16945726]
[1752333514600,3.41,159.59,159.54,3.5]
[1752333514802,9.6741,159.59,159.53,5.16945726]
[1752333515000,9.6741,159.59,159.58,3.5]
[1752333515300,189.5,159.61,159.53,5.16945726]
[1752333515301,3.41,159.6,159.56,3.5]
[1752333515901,5.16945726,159.6,159.56,3.5]
[1752333516101,3.41,159.59,159.56,3.5]
[1752333516304,3.41,159.57,159.56,3.5]
[1752333516705,3.41,159.6,159.58,3.5]
[1752333516904,3.41,159.59,159.58,3.5]
[1752333517307,195.7633,159.61,159.6,3.5]
[1752333517502,192.91,159.61,159.58,3.5]
[1752333517708,3.41,159.6,159.58,3.5]
[1752333517912,3.41,159.6,159.59,3.5]
[1752333518808,195.7632,159.61,159.58,3.5]
[1752333519010,9.6735,159.6,159.54,3.5]
[1752333519508,6.2642,159.59,159.54,3.5]
[1752333519910,3.41,159.6,159.53,5.16945726]
[1752333520114,9.6741,159.59,159.57,3.5]
[1752333520715,3.41,159.6,159.54,3.5]
[1752333521015,3.41,159.58,159.54,3.5]
[1752333521207,6.2651,159.56,159.54,3.5]
[1752333521413,9.6751,159.56,159.55,3.5]
[1752333522614,6.2655,159.55,159.53,3.5]
[1752333522810,9.6755,159.55,159.54,3.5]
[1752333523412,9.676,159.54,159.52,3.5]
[1752333523918,3.41,159.54,159.48,3.5]
[1752333524512,6.2666,159.53,159.49,6.2677]
[1752333524716,9.6766,159.53,159.51,3.47]
[1752333525821,6.266,159.54,159.47,3.47]
[1752333526216,6.266,159.54,159.5,6.2671]
[1752333526416,9.666,159.54,159.5,6.2671]
[1752333526716,9.666,159.54,159.52,3.47]
[1752333527119,6.266,159.54,159.52,3.47]
[1752333527417,9.6662,159.53,159.5,3.47]
[1752333527616,5.16945726,159.56,159.5,3.47]
[1752333527920,3.4,159.54,159.5,3.47]
[1752333528122,3.4,159.54,159.51,6.267]
[1752333528318,3.4,159.54,159.52,3.47]
[1752333528622,6.2657,159.55,159.53,3.47]
[1752333528821,9.6657,159.55,159.54,3.47]
[1752333529727,3.4,159.56,159.49,3.47]
[1752333530325,9.6653,159.56,159.52,6.2664]
[1752333530536,9.6653,159.56,159.54,3.47]
[1752333530824,9.6644,159.58,159.55,3.47]
[1752333531023,3.4,159.57,159.56,3.47]
[1752333531228,9.6644,159.58,159.54,6.2656]
[1752333531623,9.6644,159.58,159.56,3.47]
[1752333532025,3.07909574,159.59,159.54,3.47]
[1752333532229,3.4,159.56,159.54,3.47]
[1752333532526,6.2655,159.55,159.51,6.2668]
[1752333532729,3.07909574,159.55,159.5,3.47]
[1752333532922,3.07909574,159.6,159.48,3.47]
[1752333532923,3.4,159.52,159.48,3.47]
[1752333533226,3.4,159.52,159.5,3.47]
[1752333533929,3.07909574,159.6,159.48,3.47]
[1752333533930,3.4,159.5,159.48,3.47]
[1752333534124,3.4,159.49,159.48,3.47]
[1752333534323,3.07909574,159.51,159.45,3.47]
[1752333534527,3.07909574,159.51,159.48,6.268]
[1752333534730,6.47909574,159.51,159.49,3.47]
[1752333534924,3.4,159.51,159.49,3.47]
[1752333535128,5.13640547,159.53,159.5,3.47]
[1752333535328,5.13640547,159.53,159.46,3.47]
[1752333535329,8.53640547,159.53,159.46,3.47]
[1752333535528,9.6667,159.52,159.48,6.3078429]
[1752333535828,9.6667,159.52,159.5,3.47]
[1752333536627,5.13640547,159.54,159.48,0.0399429]
[1752333536927,3.4,159.52,159.51,3.47]
[1752333537128,9.6669,159.52,159.5,3.47]
[1752333537526,3.4,159.52,159.51,3.47]
[1752333538422,3.4,159.54,159.49,3.47]
[1752333538934,6.2657,159.55,159.51,6.2668]
[1752333539127,3.4,159.54,159.53,3.47]
[1752333539823,5.13640547,159.56,159.51,6.2668]
[1752333539824,3.4,159.55,159.51,3.47]
[1752333540024,3.4,159.53,159.46,5.22022266]
[1752333540229,3.4,159.52,159.5,3.47]
[1752333540430,3.4,159.52,159.51,3.47]
[1752333540632,3.4,159.57,159.48,3.47]
[1752333540827,5.13640547,159.56,159.48,3.47]
[1752333541034,730.64,159.58,159.52,3.47]
[1752333541428,189.2,159.58,159.56,6.2651]
[1752333541628,3.4,159.6,159.58,3.47]
[1752333541822,3.4,159.6,159.59,3.47]
[1752333542026,6.264,159.59,159.57,3.47]
[1752333542226,9.664,159.59,159.53,5.13640547]
[1752333542432,3.4,159.61,159.54,3.47]
[1752333542629,9.6637,159.6,159.57,3.47]
[1752333542821,3.4,159.6,159.53,5.13640547]
[1752333543027,6.264,159.59,159.56,6.265]
[1752333543229,9.664,159.59,159.57,3.47]
[1752333543629,3.4,159.58,159.57,3.47]
[1752333544023,3.4,159.58,159.51,5.13640547]
[1752333544226,3.4,159.6,159.54,3.47]
[1752333544428,3.4,159.58,159.55,3.47]
[1752333544732,9.6649,159.57,159.55,3.47]
[1752333544931,3.4,159.57,159.55,3.47]
[1752333545132,3.4,159.57,159.56,3.47]
[1752333545332,3.4,159.57,159.55,3.47]
[1752333545632,3.4,159.57,159.52,3.47]
[1752333545831,3.4,159.59,159.53,3.47]
[1752333546334,3.4,159.59,159.56,6.2647]
[1752333546728,3.4,159.59,159.58,3.47]
[1752333547132,11.40010547,159.6,159.58,3.47]
[1752333547332,14.80010547,159.6,159.58,3.47]
[1752333547533,9.6637,159.6,159.58,3.47]
[1752333547729,3.4,159.6,159.59,3.47]
[1752333548332,6.2631,159.61,159.59,3.47]
[1752333548528,9.6631,159.61,159.58,6.2642]
[1752333548729,9.6631,159.61,159.58,3.47]
[1752333548936,9.6631,159.61,159.59,3.47]
[1752333549630,6.2635,159.6,159.59,3.47]
[1752333549836,3.4,159.61,159.53,3.47]
[1752333550136,3.4,159.61,159.54,3.47]
[1752333550338,3.4,159.59,159.53,3.47]
[1752333550931,11.40010547,159.6,159.57,3.47]
[1752333551235,9.6637,159.6,159.57,3.47]
[1752333551436,9.6637,159.6,159.57,9.7346]
[1752333551738,9.6637,159.6,159.46,23.05034585]
[1752333551739,9.6637,159.6,159.59,3.47]
[1752333552037,3.4,159.6,159.57,0.03989328]
[1752333552240,3.4,159.6,159.57,3.50989328]
[1752333552439,9.6637,159.6,159.53,5.13640547]
[1752333552636,189.12,159.63,159.57,6.2644]
[1752333552940,6.2634,159.61,159.57,6.2644]
[1752333553234,3.4,159.61,159.59,3.47]
[1752333553434,3.4,159.6,159.59,3.47]
[1752333553633,3.4,159.58,159.53,5.13640547]
[1752333553838,3.4,159.58,159.54,3.47]
[1752333554329,3.4,159.57,159.55,3.47]
[1752333554536,3.4,159.57,159.5,5.26516164]
[1752333554735,8.45640547,159.59,159.51,3.47]
[1752333555439,3.32,159.6,159.57,3.51]
[1752333555640,5.13640547,159.62,159.57,3.51]
[1752333555938,3.32,159.61,159.57,3.51]
[1752333556140,192.44,159.63,159.59,3.51]
[1752333556344,189.12,159.63,159.59,3.51]
[1752333556640,6.2631,159.61,159.6,3.51]
[1752333556839,3.32,159.62,159.6,3.51]
[1752333557139,6.2631,159.61,159.6,3.51]
[1752333557331,9.5831,159.61,159.59,0.0399519]
[1752333557527,6.2631,159.61,159.59,3.5499519]
[1752333557729,9.5831,159.61,159.59,3.5499519]
[1752333558040,9.5831,159.61,159.6,3.51]
[1752333559442,3.32,159.6,159.56,3.51]
[1752333559737,3.32,159.58,159.56,3.51]
[1752333559941,5.12956504,159.59,159.56,3.51]
[1752333560140,3.32,159.58,159.57,3.51]
[1752333560336,3.32,159.58,159.55,3.51]
[1752333560547,3.32,159.57,159.56,3.51]
[1752333560742,3.32,159.58,159.51,3.51]
[1752333560940,3.32,159.58,159.56,3.51]
[1752333561136,3.32,159.57,159.55,3.51]
[1752333561342,0.04013905,159.58,159.51,3.51]
[1752333561535,0.04013905,159.58,159.51,8.77516164]
[1752333561843,0.04013905,159.58,159.56,3.51]
[1752333562041,0.04013905,159.58,159.52,5.12956504]
[1752333562244,0.04013905,159.58,159.53,3.51]
[1752333562445,0.04013905,159.58,159.57,6.2647]
[1752333562742,0.04013905,159.58,159.57,9.7747]
[1752333563636,0.04013905,159.58,159.57,3.51]
[1752333563837,3.36013905,159.58,159.51,5.26516164]
[1752333564136,3.32,159.57,159.56,3.51]
[1752333564638,6.2645,159.58,159.56,3.51]
[1752333564835,3.32,159.62,159.56,3.51]
[1752333565041,8.44956504,159.62,159.56,3.51]
[1752333565242,3.32,159.61,159.58,3.51]
[1752333565441,9.5833,159.61,159.59,3.51]
[1752333565835,9.5833,159.61,159.6,3.51]
[1752333567243,11.43262584,159.62,159.6,3.51]
[1752333567545,14.75262584,159.62,159.6,3.51]
[1752333567747,9.5831,159.61,159.6,3.51]
[1752333567947,9.5831,159.61,159.55,3.51]
[1752333568341,3.32,159.61,159.55,3.51]
[1752333569348,9.5833,159.61,159.58,6.2641]
[1752333569548,3.32,159.6,159.59,3.51]
[1752333569743,3.32,159.6,159.55,3.51]
[1752333569939,3.32,159.59,159.57,3.51]
[1752333570143,5.12956504,159.62,159.58,3.51]
[1752333570448,3.32,159.6,159.59,3.51]
[1752333570653,5.12956504,159.62,159.52,10.39472668]
[1752333570947,9.5831,159.61,159.6,3.51]
[1752333571140,9.5831,159.61,159.53,3.51]
[1752333572447,9.5831,159.61,159.59,3.51]
[1752333572750,9.5831,159.61,159.6,3.51]
[1752333573550,6.2631,159.61,159.58,3.51]
[1752333573746,3.32,159.6,159.59,3.51]
[1752333574156,9.5835,159.6,159.59,3.51]
[1752333574450,3.32,159.6,159.59,3.51]
[1752333575151,8.44956504,159.62,159.59,3.51]
[1752333575450,3.32,159.6,159.59,3.51]
[1752333576051,9.5835,159.6,159.59,3.51]
[1752333577148,6.264,159.59,159.57,3.51]
[1752333577352,3.32,159.58,159.57,3.51]
[1752333577748,3.32,159.58,159.52,3.51]
[1752333577950,8.44956504,159.6,159.52,3.51]
[1752333578149,3.32,159.6,159.57,6.2644]
[1752333578353,3.32,159.6,159.58,3.51]
[1752333578553,5.12956504,159.62,159.58,3.51]
[1752333578753,3.32,159.59,159.58,3.51]
[1752333579851,9.5839,159.59,159.58,3.51]
[1752333580052,0.03956404,159.61,159.58,3.51]
[1752333580256,3.32,159.6,159.59,3.51]
[1752333580449,6.43794569,159.61,159.54,3.51]
[1752333580955,0.03956404,159.61,159.56,3.51]
[1752333581650,9.62276404,159.61,159.59,3.51]
[1752333581848,9.62276404,159.61,159.6,3.51]
[1752333582257,0.03956404,159.61,159.6,3.51]
[1752333583055,3.35956404,159.61,159.59,3.51]
[1752333583256,3.35956404,159.61,159.6,3.51]
[1752333585351,9.62266404,159.61,159.6,3.51]
[1752333585556,9.62266404,159.61,159.58,3.5]
[1752333585755,3.4,159.6,159.59,3.5]
[1752333586058,3.4,159.59,159.55,3.5]
[1752333586861,3.4,159.59,159.54,5.27430932]
[1752333586862,3.4,159.59,159.58,3.5]
[1752333589361,3.4,159.59,159.56,3.5]
[1752333589668,9.6647,159.57,159.56,3.5]
[1752333589964,3.4,159.57,159.56,3.5]
[1752333590362,9.34278165,159.58,159.56,3.5]
[1752333590664,9.34278165,159.58,159.57,3.5]
[1752333590665,6.47838165,159.58,159.57,3.5]
[1752333591762,3.4,159.57,159.55,3.5]
[1752333591962,3.07838165,159.58,159.55,3.5]
[1752333592164,3.4,159.57,159.55,3.5]
[1752333592465,6.2649,159.57,159.55,3.5]
[1752333592660,6.2649,159.57,159.54,3.5]
[1752333592868,3.11814218,159.58,159.53,3.5]
[1752333593065,3.11814218,159.58,159.53,5.27430932]
[1752333593263,3.11814218,159.58,159.55,6.2653]
[1752333593470,3.11814218,159.58,159.56,3.5]
[1752333593664,0.03976053,159.58,159.56,3.5]
[1752333593871,0.03976053,159.58,159.57,6.2647]
[1752333594069,0.03976053,159.58,159.57,9.7647]
[1752333596475,3.43976053,159.58,159.57,3.5]
[1752333596776,0.03976053,159.58,159.57,3.5]
[1752333596970,0.03976053,159.58,159.57,9.7647]
[1752333600873,0.03976053,159.58,159.57,3.5]
[1752333601080,3.43976053,159.58,159.57,3.5]
[1752333601479,3.43976053,159.58,159.57,10.07570085]
[1752333601880,0.03976053,159.58,159.57,10.07570085]
[1752333602674,6.51814218,159.58,159.57,6.57570085]
[1752333603375,12.78244218,159.58,159.57,6.57570085]
[1752333604074,6.51814218,159.58,159.57,10.07570085]
[1752333604276,0.03976053,159.58,159.57,10.07570085]
[1752333605180,0.03976053,159.58,159.57,10.07487657]
[1752333605682,3.43976053,159.58,159.57,10.07487657]
[1752333606180,0.03976053,159.58,159.57,10.07487657]
[1752333606375,0.03976053,159.58,159.57,16.33957657]
[1752333608084,3.43976053,159.58,159.57,10.07487657]
[1752333608985,9.70406053,159.58,159.57,6.57487657]
[1752333609784,9.70406053,159.58,159.57,9.84310745]
[1752333610887,3.43976053,159.58,159.57,9.84310745]
[1752333611082,0.03976053,159.58,159.57,13.34310745]
[1752333611386,3.43976053,159.58,159.57,9.84310745]
[1752333611578,9.70406053,159.58,159.57,9.84310745]
[1752333612883,3.4,159.57,159.51,3.5]
[1752333613079,3.07838165,159.53,159.51,3.5]
[1752333613279,6.47838165,159.53,159.52,3.5]
[1752333613987,12.74458165,159.53,159.52,3.5]
[1752333614488,12.74478165,159.53,159.51,3.5]
[1752333614885,3.65,159.52,159.51,3.5]
[1752333615289,6.72838165,159.53,159.52,3.48]
[1752333615490,3.65,159.52,159.48,3.48]
[1752333615988,6.72838165,159.51,159.46,5.27430932]
[1752333616188,6.72838165,159.51,159.5,3.48]
[1752333616582,12.99538165,159.51,159.5,3.48]
[1752333617391,6.72838165,159.51,159.5,3.48]
[1752333617692,3.65,159.5,159.48,3.48]
[1752333617886,6.72838165,159.49,159.48,3.48]
[1752333618389,12.99618165,159.49,159.48,3.48]
[1752333619386,9.34618165,159.49,159.48,3.48]
[1752333619587,6.2682,159.48,159.44,3.48]
[1752333619784,3.65,159.5,159.46,3.48]
[1752333619987,6.72838165,159.52,159.46,3.48]
[1752333620188,6.2673,159.51,159.46,3.48]
[1752333620388,9.9173,159.51,159.46,3.48]
[1752333620588,9.9173,159.51,159.47,6.2684]
[1752333620790,9.9173,159.51,159.48,3.48]
[1752333621092,9.95712175,159.51,159.48,3.48]
[1752333621790,9.95712175,159.51,159.49,3.48]
[1752333621992,9.95712175,159.51,159.5,3.48]
[1752333622491,3.68982175,159.51,159.5,3.48]
[1752333622691,0.03982175,159.51,159.5,3.48]
[1752333623387,3.68982175,159.51,159.5,3.48]
[1752333624388,0.03982175,159.51,159.5,3.48]
[1752333624793,0.03982175,159.51,159.5,6.66110637]
[1752333624993,3.68982175,159.51,159.5,6.66110637]
[1752333625695,3.68982175,159.51,159.5,3.18110637]
[1752333625891,9.95682175,159.51,159.5,3.18110637]
[1752333627189,3.65,159.5,159.42,5.27430932]
[1752333627400,3.65,159.44,159.41,5.27430932]
[1752333627588,3.07838165,159.45,159.42,6.2704]
[1752333627794,6.72838165,159.45,159.44,3.48]
[1752333628892,3.07838165,159.46,159.44,3.48]
[1752333629086,3.07838165,159.48,159.44,3.48]
[1752333629286,0.03997279,159.46,159.45,3.48]
[1752333629489,3.68997279,159.46,159.45,3.48]
[1752333630094,9.38735444,159.46,159.42,3.48]
[1752333630288,6.76835444,159.46,159.42,3.48]
[1752333630492,0.03997279,159.46,159.43,3.48]
[1752333631099,3.68997279,159.46,159.43,6.27]
[1752333631293,3.65,159.44,159.42,3.48]
[1752333631487,3.65,159.43,159.42,3.48]
[1752333631687,3.65,159.42,159.41,3.48]
[1752333631895,0.03997279,159.46,159.4,8.75430932]
[1752333632095,6.72838165,159.44,159.41,3.48]
[1752333632398,6.72838165,159.46,159.41,3.48]
[1752333632597,3.65,159.44,159.4,5.27430932]
[1752333632896,3.65,159.5,159.42,3.48]
[1752333633100,0.03981922,159.45,159.42,3.48]
[1752333633298,0.03981922,159.45,159.44,9.7495]
[1752333633696,0.03981922,159.45,159.44,3.48]
[1752333633886,3.68981922,159.45,159.44,3.48]
[1752333634091,3.68981922,159.45,159.41,5.25271844]
[1752333634292,0.03981922,159.45,159.43,3.48]
[1752333634494,0.03981922,159.45,159.42,3.48]
[1752333635193,0.03981922,159.45,159.44,9.7498]
[1752333637801,0.03981922,159.45,159.44,3.48]
[1752333640503,0.03981922,159.45,159.44,9.7498]
[1752333641304,0.03981922,159.45,159.44,3.48]
[1752333642300,0.03981922,159.45,159.44,9.7498]
[1752333642499,0.03981922,159.45,159.44,3.48]
[1752333643801,3.68981922,159.45,159.44,3.48]
[1752333644001,0.03981922,159.45,159.44,3.48]
[1752333644198,0.03981922,159.45,159.44,9.7498]
[1752333645007,3.39981922,159.45,159.44,3.48]
[1752333645210,6.47820087,159.45,159.42,3.63]
[1752333645504,6.47820087,159.45,159.36,3.07838165]
[1752333645505,3.36,159.42,159.41,3.63]
[1752333645704,6.43838165,159.44,159.37,3.63]
[1752333646102,3.36,159.43,159.42,3.63]
[1752333647611,6.43838165,159.44,159.43,3.63]
[1752333648512,3.36,159.43,159.42,3.63]
[1752333649311,9.6302,159.43,159.4,3.63]
[1752333649508,3.36,159.42,159.41,3.63]
[1752333649708,3.07838165,159.44,159.41,3.63]
[1752333649911,3.36,159.43,159.42,3.63]
[1752333650207,3.07838165,159.44,159.41,3.63]
[1752333650413,3.36,159.42,159.41,3.63]
[1752333650710,3.36,159.42,159.39,9.9016]
[1752333650912,3.36,159.42,159.4,3.63]
[1752333651113,3.36,159.41,159.4,3.63]
[1752333652214,3.36,159.41,159.4,9.9014]
[1752333653214,3.36,159.41,159.4,3.63]
[1752333654213,6.2704,159.43,159.4,9.9014]
[1752333654413,6.2704,159.43,159.41,3.63]
[1752333654616,3.36,159.42,159.41,3.63]
[1752333654814,9.6306,159.42,159.41,3.63]
[1752333655017,3.36,159.42,159.41,3.63]
[1752333655618,3.36,159.41,159.39,3.63]
[1752333655805,3.36,159.4,159.39,3.63]
[1752333656110,3.36,159.4,159.39,9.9018]
[1752333656314,3.36,159.41,159.4,3.63]
[1752333658718,3.39984762,159.42,159.4,3.63]
[1752333658916,0.03984762,159.42,159.4,3.63]
[1752333660019,9.67054762,159.42,159.4,3.63]
[1752333660317,0.03984762,159.42,159.36,5.25028927]
[1752333660614,3.07838165,159.37,159.36,5.25028927]
[1752333660817,3.36,159.36,159.34,3.63]
[1752333661224,187.48,159.38,159.35,3.63]
[1752333661620,190.82,159.43,159.38,3.63]
[1752333661827,197.0904,159.43,159.38,3.63]
[1752333662015,197.0904,159.43,159.39,6.2715]
[1752333662211,190.82,159.43,159.4,3.63]
[1752333662417,187.46,159.43,159.4,3.63]
[1752333663724,3.36,159.45,159.4,3.63]
[1752333663910,6.27,159.44,159.41,6.2707]
[1752333664111,6.27,159.44,159.42,3.63]
[1752333665722,9.6295,159.45,159.42,3.63]
[1752333665926,3.36,159.45,159.42,9.9004]
[1752333666219,190.53838165,159.48,159.43,3.63]
[1752333666414,3.36,159.47,159.43,3.63]
[1752333666613,190.53838165,159.48,159.45,3.63]
[1752333666817,197.0884,159.48,159.45,3.63]
[1752333667019,3.36,159.47,159.42,9.9004]
[1752333667216,3.36,159.47,159.43,3.63]
[1752333667621,3.36,159.47,159.45,3.63]
[1752333668624,3.36,159.47,159.46,3.63]
[1752333668827,190.53838165,159.48,159.46,3.63]
[1752333669420,541.6,159.51,159.47,3.63]
[1752333669624,3.36,159.5,159.47,3.63]
[1752333669923,3.36,159.49,159.42,3.63]
[1752333670122,9.6279,159.49,159.45,6.2692]
[1752333670322,3.36,159.48,159.46,3.63]
[1752333670524,3.36,159.48,159.47,3.63]
[1752333670721,6.43838165,159.48,159.47,3.63]
[1752333670925,6.43838165,159.48,159.44,6.2694]
[1752333671124,3.36,159.45,159.42,5.25028927]
[1752333671426,6.43838165,159.46,159.42,3.63]
[1752333671826,6.43838165,159.46,159.43,3.63]
[1752333672022,3.07838165,159.46,159.43,3.63]
[1752333672828,541.6,159.51,159.43,3.63]
[1752333673023,3.36,159.5,159.44,3.63]
[1752333673225,0.03975917,159.46,159.44,3.63]
[1752333673422,0.03975917,159.46,159.45,6.2694]
[1752333673624,0.03975917,159.46,159.45,3.63]
[1752333674132,0.03975917,159.46,159.45,9.8994]
[1752333677531,0.03975917,159.46,159.45,3.63]
[1752333677929,0.03975917,159.46,159.45,9.8994]
[1752333680631,0.03975917,159.46,159.45,3.63]
[1752333681231,0.03975917,159.46,159.45,9.8994]
[1752333682525,3.66975917,159.46,159.45,3.63]
[1752333683025,3.66975917,159.46,159.41,3.46]
[1752333683231,6.70838165,159.43,159.39,5.25028927]
[1752333683432,6.70838165,159.43,159.42,3.46]
[1752333685135,12.97858165,159.43,159.42,3.46]
[1752333686540,3.07838165,159.43,159.42,3.46]
[1752333686934,6.70838165,159.43,159.42,3.46]
[1752333687239,3.07838165,159.43,159.42,3.46]
[1752333687436,0.03980052,159.44,159.42,3.46]
[1752333688437,0.03980052,159.44,159.43,6.2702]
[1752333688641,0.03980052,159.44,159.43,9.7302]
[1752333690240,732.31,159.51,159.47,6.2682]
[1752333690442,732.31,159.51,159.48,3.46]
[1752333690636,6.2676,159.5,159.48,3.46]
[1752333691036,728.68,159.51,159.49,3.46]
[1752333691237,187.08,159.51,159.49,3.46]
[1752333691639,6.70838165,159.53,159.49,3.46]
[1752333692046,3.63,159.52,159.49,3.46]
[1752333693045,3.07838165,159.53,159.5,3.46]
[1752333693249,3.63,159.52,159.49,3.46]
[1752333693451,3.63,159.5,159.44,8.32867092]
[1752333693640,3.63,159.49,159.48,3.46]
[1752333695044,3.63,159.49,159.47,6.2682]
[1752333695245,3.63,159.49,159.47,9.7282]
[1752333695441,3.63,159.48,159.47,3.46]
[1752333696447,3.63,159.48,159.43,3.46]
[1752333696641,3.63,159.46,159.43,3.46]
[1752333696853,3.63,159.46,159.41,5.25028927]
[1752333697047,3.63,159.46,159.42,3.46]
[1752333697243,3.63,159.46,159.43,0.03960271]
[1752333697443,3.63,159.46,159.45,3.46]
[1752333698051,6.70838165,159.47,159.45,3.46]
[1752333698247,3.63,159.46,159.45,3.46]
[1752333699254,3.07838165,159.47,159.44,6.2696]
[1752333699255,3.07838165,159.47,159.44,3.46]
[1752333699455,6.70838165,159.45,159.43,3.49960271]
[1752333699654,6.70838165,159.45,159.44,3.46]
[1752333699859,3.63,159.45,159.44,3.46]
[1752333700154,3.63,159.46,159.45,3.46]
[1752333700353,3.63,159.45,159.43,3.49960271]
[1752333700554,3.63,159.45,159.44,3.46]
[1752333703356,6.2684,159.48,159.44,3.46]
[1752333703558,6.70838165,159.47,159.44,3.46]
[1752333703758,3.63,159.46,159.45,3.46]
[1752333705654,3.63,159.46,159.45,9.7294]
[1752333705959,3.63,159.46,159.45,3.46]
[1752333706160,3.63,159.46,159.43,9.86960271]
[1752333706363,3.38,159.45,159.44,3.56]
[1752333706857,6.45838165,159.45,159.43,0.03960271]
[1752333707058,3.38,159.44,159.43,0.03960271]
[1752333707260,3.38,159.44,159.43,3.59960271]
[1752333707651,3.38,159.44,159.43,0.03960271]
[1752333707960,3.38,159.44,159.4,6.2713]
[1752333708152,3.07838165,159.42,159.41,3.56]
[1752333708351,6.45838165,159.42,159.41,3.56]
[1752333710366,3.07838165,159.42,159.4,3.56]
[1752333710565,3.07838165,159.42,159.38,3.56]
[1752333710566,3.38,159.41,159.38,3.56]
[1752333710770,3.38,159.41,159.39,3.56]
[1752333711068,3.38,159.4,159.39,3.56]
[1752333713569,3.38,159.4,159.38,6.2721]
[1752333713766,3.38,159.39,159.38,9.8321]
[1752333714166,3.38,159.41,159.4,3.56]
[1752333714869,6.2704,159.43,159.4,3.56]
[1752333715071,6.2704,159.43,159.35,8.34331351]
[1752333715072,3.07838165,159.44,159.39,6.2716]
[1752333715368,3.38,159.42,159.41,3.56]
[1752333716257,3.07838165,159.44,159.39,6.2716]
[1752333716459,3.38,159.41,159.4,3.56]
[1752333717059,3.07838165,159.42,159.37,3.56]
[1752333717262,3.38,159.4,159.37,3.56]
[1752333717468,3.38,159.4,159.38,6.2719]
[1752333717665,3.38,159.48,159.39,3.56]
[1752333717860,6.45838165,159.44,159.39,3.56]
[1752333718064,12.72838165,159.44,159.41,3.56]
[1752333719267,6.45838165,159.46,159.41,3.56]
[1752333720070,12.72758165,159.46,159.42,6.2704]
[1752333720269,3.38,159.45,159.39,3.07838165]
[1752333720473,6.27,159.44,159.41,6.2709]
[1752333720775,3.07838165,159.46,159.43,3.56]
[1752333720971,186.94,159.49,159.4,3.56]
[1752333720972,3.07838165,159.44,159.4,3.56]
[1752333721170,3.38,159.41,159.38,3.56]
[1752333721367,3.38,159.38,159.37,5.26493186]
[1752333721575,9.6525,159.37,159.36,5.26493186]
[1752333721872,3.38,159.36,159.34,5.26493186]
[1752333722072,3.38,159.34,159.33,5.26493186]
[1752333722275,3.38,159.33,159.29,5.26493186]
[1752333722471,3.38,159.31,159.3,3.56]
[1752333722676,9.6549,159.31,159.3,3.56]